fUSD/lending_fUSD_20250716
["ID","MTS","AMOUNT","RATE_DAILY","PERIOD"]
[372614354,1752706245697,-460.0,0.00019496,2]
[372614355,1752706245706,-1151.23,0.00019496,2]
[372614358,1752706245716,-460.0,0.00019496,2]
[372614360,1752706245725,-1062.11,0.00019496,2]
[372614362,1752706245735,-460.0,0.00019496,2]
[372614364,1752706245745,-460.0,0.00019496,2]
[372614365,1752706245755,-465.06,0.00019496,2]
[372614367,1752706245764,-563.34,0.00019496,2]
[372614369,1752706245775,-1409.47,0.00019496,2]
[372614372,1752706245784,-151.0,0.00019496,2]
[372614373,1752706245794,-460.0,0.00019496,2]
[372614375,1752706245804,-1031.06,0.00019496,2]
[372614377,1752706245814,-460.0,0.00019496,2]
[372614380,1752706245824,-742.15,0.00019496,2]
[372614382,1752706245835,-519.03,0.00019496,2]
[372614384,1752706245844,-460.0,0.00019496,2]
[372614386,1752706245854,-460.0,0.00019496,2]
[372614387,1752706245863,-500.0,0.00019496,2]
[372614388,1752706245872,-460.0,0.00019496,2]
[372614389,1752706245882,-959.45,0.00019496,2]
[372614390,1752706245892,-188.098856,0.00019496,2]
[372614391,1752706245901,-188.098856,0.00019496,2]
[372614393,1752706245911,-460.0,0.00019496,2]
[372614394,1752706245920,-151.0,0.00019496,2]
[372614395,1752706245930,-188.098856,0.00019496,2]
[372614396,1752706245939,-188.098856,0.00019496,2]
[372614397,1752706245951,-282.307678,0.00019496,2]
[372614398,1752706245961,-426.21327319,0.00019496,2]
[372614399,1752706245970,-460.0,0.00019496,2]
[372614401,1752706245980,-856.13,0.00019496,2]
[372614403,1752706245990,-378.35814924,0.00019496,2]
[372614405,1752706245999,-460.0,0.00019496,2]
[372614407,1752706246008,-460.0,0.00019496,2]
[372614409,1752706246018,-460.0,0.00019496,2]
[372614411,1752706246028,-460.0,0.00019496,2]
[372614413,1752706246037,-151.0,0.00019496,2]
[372614415,1752706246047,-151.0,0.00019496,2]
[372614417,1752706246056,-460.0,0.00019496,2]
[372614419,1752706246066,-460.0,0.00019496,2]
[372614421,1752706246076,-528.89,0.00019496,2]
[372614423,1752706246086,-479.98,0.00019496,2]
[372614425,1752706246095,-460.0,0.00019496,2]
[372614427,1752706246105,-460.0,0.00019496,2]
[372614429,1752706246114,-460.0,0.00019496,2]
[372614431,1752706246124,-460.0,0.00019496,2]
[372614433,1752706246133,-460.0,0.00019496,2]
[372614435,1752706246143,-151.0,0.00019496,2]
[372614437,1752706246152,-153.6060871,0.00019496,2]
[372614439,1752706246162,-152.0,0.00019496,2]
[372614441,1752706246171,-152.0,0.00019496,2]
[372614443,1752706246180,-152.0,0.00019496,2]
[372614445,1752706246190,-595.59537787,0.00019496,2]
[372614447,1752706246201,-152.0,0.00019496,2]
[372614449,1752706246211,-152.0,0.00019496,2]
[372614451,1752706246221,-152.0,0.00019496,2]
[372614453,1752706246230,-299.70429272,0.00019496,2]
[372614455,1752706246244,-152.0,0.00019496,2]
[372614457,1752706246254,-460.0,0.00019496,2]
[372614459,1752706246263,-152.0,0.00019496,2]
[372614461,1752706246274,-460.0,0.00019496,2]
[372614463,1752706246283,-292.48531628,0.00019496,2]
[372614465,1752706246293,-727.2,0.00019496,2]
[372614467,1752706246303,-500.0,0.00019496,2]
[372614469,1752706246316,-839.02,0.00019496,2]
[372614471,1752706246327,-460.0,0.00019496,2]
[372614473,1752706246336,-500.0,0.00019496,2]
[372614475,1752706246346,-567.06,0.00019496,2]
[372614477,1752706246355,-460.0,0.00019496,2]
[372614479,1752706246364,-460.0,0.00019496,2]
[372614481,1752706246374,-460.0,0.00019496,2]
[372614483,1752706246383,-694.66,0.00019496,2]
[372614485,1752706246393,-460.0,0.00019496,2]
[372614487,1752706246402,-5841.46,0.00019496,2]
[372614489,1752706246412,-1653.97,0.00019496,2]
[372614491,1752706246421,-460.0,0.00019496,2]
[372614493,1752706246432,-151.0,0.00019496,2]
[372614495,1752706246442,-151.0,0.00019496,2]
[372614497,1752706246454,-526.87,0.00019496,2]
[372614499,1752706246463,-460.0,0.00019496,2]
[372614501,1752706246474,-460.0,0.00019496,2]
[372614503,1752706246484,-6447.6,0.00019496,2]
[372614505,1752706246494,-460.0,0.00019496,2]
[372614507,1752706246503,-151.0,0.00019496,2]
[372614509,1752706246513,-151.0,0.00019496,2]
[372614511,1752706246523,-480.32,0.00019496,2]
[372614513,1752706246536,-460.0,0.00019496,2]
[372614515,1752706246546,-151.0,0.00019496,2]
[372614517,1752706246555,-151.0,0.00019496,2]
[372614519,1752706246564,-665.66,0.00019496,2]
[372614521,1752706246574,-460.0,0.00019496,2]
[372614523,1752706246583,-574.05,0.00019496,2]
[372614525,1752706246594,-460.0,0.00019496,2]
[372614527,1752706246604,-151.0,0.00019496,2]
[372614529,1752706246613,-151.0,0.00019496,2]
[372614531,1752706246623,-1628.52,0.00019496,2]
[372614533,1752706246632,-460.0,0.00019496,2]
[372614535,1752706246642,-460.0,0.00019496,2]
[372614537,1752706246651,-460.0,0.00019496,2]
[372614539,1752706246660,-151.0,0.00019496,2]
[372614541,1752706246670,-151.0,0.00019496,2]
[372614543,1752706246679,-414.53323865,0.00019496,2]
[372614545,1752706246689,-2175.10921,0.00019496,2]
[372614547,1752706246699,-858.48,0.00019496,2]
[372614549,1752706246709,-460.0,0.00019496,2]
[372614551,1752706246718,-760.41,0.00019496,2]
[372614553,1752706246727,-460.0,0.00019496,2]
[372614555,1752706246737,-460.0,0.00019496,2]
[372614557,1752706246746,-5945.44,0.00019496,2]
[372614559,1752706246755,-151.0,0.00019496,2]
[372614561,1752706246764,-1925.78,0.00019496,2]
[372614563,1752706246774,-151.0,0.00019496,2]
[372614565,1752706246783,-151.0,0.00019496,2]
[372614567,1752706246793,-1055.13,0.00019496,2]
[372614569,1752706246803,-697.31,0.00019496,2]
[372614571,1752706246812,-460.0,0.00019496,2]
[372614573,1752706246821,-1552.43,0.00019496,2]
[372614575,1752706246831,-460.0,0.00019496,2]
[372614577,1752706246839,-164.582931,0.00019496,2]
[372614579,1752706246849,-151.0,0.00019496,2]
[372614581,1752706246858,-460.0,0.00019496,2]
[372614582,1752706246867,-151.0,0.00019496,2]
[372614584,1752706246876,-460.0,0.00019496,2]
[372614586,1752706246885,-154.365874,0.00019496,2]
[372614588,1752706246895,-151.0,0.00019496,2]
[372614590,1752706246904,-664.6,0.00019496,2]
[372614592,1752706246914,-1990.93,0.00019496,2]
[372614594,1752706246924,-151.0,0.00019496,2]
[372614596,1752706246933,-460.0,0.00019496,2]
[372614598,1752706246943,-688.55,0.00019496,2]
[372614600,1752706246955,-151.0,0.00019496,2]
[372614602,1752706246964,-151.0,0.00019496,2]
[372614605,1752706246974,-151.0,0.00019496,2]
[372614606,1752706246983,-151.0,0.00019496,2]
[372614608,1752706246992,-460.0,0.00019496,2]
[372614610,1752706247002,-1141.92,0.00019496,2]
[372614612,1752706247011,-151.0,0.00019496,2]
[372614614,1752706247021,-151.0,0.00019496,2]
[372614616,1752706247031,-1647.76,0.00019496,2]
[372614618,1752706247040,-1393.3,0.00019496,2]
[372614620,1752706247049,-460.0,0.00019496,2]
[372614623,1752706247059,-780.12,0.00019496,2]
[372614625,1752706247069,-2401.92,0.00019496,2]
[372614626,1752706247079,-460.0,0.00019496,2]
[372614629,1752706247089,-700.67,0.00019496,2]
[372614630,1752706247098,-678.72,0.00019496,2]
[372614632,1752706247108,-460.0,0.00019496,2]
[372614634,1752706247117,-9397.43,0.00019496,2]
[372614636,1752706247126,-151.0,0.00019496,2]
[372614639,1752706247136,-1173.63,0.00019496,2]
[372614641,1752706247145,-197.999282,0.00019496,2]
[372614643,1752706247163,-912.63,0.00019496,2]
[372614645,1752706247174,-460.0,0.00019496,2]
[372614647,1752706247183,-460.0,0.00019496,2]
[372614649,1752706247192,-460.0,0.00019496,2]
[372614651,1752706247204,-678.59,0.00019496,2]
[372614653,1752706247214,-1194.26,0.00019496,2]
[372614655,1752706247224,-1194.26,0.00019496,2]
[372614656,1752706247233,-460.0,0.00019496,2]
[372614658,1752706247245,-829.34,0.00019496,2]
[372614660,1752706247255,-2021.67,0.00019496,2]
[372614662,1752706247264,-1217.49,0.00019496,2]
[372614664,1752706247274,-460.0,0.00019496,2]
[372614666,1752706247284,-710.85,0.00019496,2]
[372614668,1752706247293,-151.0,0.00019496,2]
[372614670,1752706247303,-151.0,0.00019496,2]
[372614672,1752706247313,-2298.26,0.00019496,2]
[372614674,1752706247322,-460.0,0.00019496,2]
[372614676,1752706247331,-1282.51,0.00019496,2]
[372614678,1752706247340,-460.0,0.00019496,2]
[372614680,1752706247350,-460.0,0.00019496,2]
[372614682,1752706247359,-933.74,0.00019496,2]
[372614684,1752706247368,-460.0,0.00019496,2]
[372614686,1752706247378,-2551.04,0.00019496,2]
[372614688,1752706247387,-6288.88,0.00019496,2]
[372614690,1752706247396,-858.94,0.00019496,2]
[372614692,1752706247405,-635.1,0.00019496,2]
[372614694,1752706247414,-1227.41,0.00019496,2]
[372614696,1752706247423,-151.0,0.00019496,2]
[372614698,1752706247432,-151.0,0.00019496,2]
[372614700,1752706247441,-151.0,0.00019496,2]
[372614702,1752706247453,-7873.41,0.00019496,2]
[372614704,1752706247462,-194.43535,0.00019496,2]
[372614706,1752706247472,-460.0,0.00019496,2]
[372614708,1752706247481,-151.0,0.00019496,2]
[372614710,1752706247490,-651.52,0.00019496,2]
[372614712,1752706247499,-151.0,0.00019496,2]
[372614714,1752706247511,-151.0,0.00019496,2]
[372614715,1752706247521,-1332.8,0.00019496,2]
[372614717,1752706247530,-460.0,0.00019496,2]
[372614719,1752706247539,-151.0,0.00019496,2]
[372614721,1752706247549,-151.0,0.00019496,2]
[372614723,1752706247558,-1006.24,0.00019496,2]
[372614725,1752706247567,-460.0,0.00019496,2]
[372614727,1752706247576,-460.0,0.00019496,2]
[372614729,1752706247585,-460.0,0.00019496,2]
[372614731,1752706247595,-151.0,0.00019496,2]
[372614733,1752706247604,-1051.42,0.00019496,2]
[372614735,1752706247613,-151.0,0.00019496,2]
[372614737,1752706247622,-460.0,0.00019496,2]
[372614739,1752706247632,-679.83,0.00019496,2]
[372614741,1752706247641,-151.0,0.00019496,2]
[372614743,1752706247650,-151.0,0.00019496,2]
[372614745,1752706247659,-151.0,0.00019496,2]
[372614747,1752706247669,-1110.42,0.00019496,2]
[372614749,1752706247679,-2210.88,0.00019496,2]
[372614751,1752706247688,-1172.42,0.00019496,2]
[372614753,1752706247699,-460.0,0.00019496,2]
[372614755,1752706247709,-151.0,0.00019496,2]
[372614757,1752706247718,-258.97238,0.00019496,2]
[372614759,1752706247727,-258.97238,0.00019496,2]
[372614761,1752706247736,-151.0,0.00019496,2]
[372614763,1752706247746,-151.0,0.00019496,2]
[372614765,1752706247755,-460.0,0.00019496,2]
[372614767,1752706247763,-258.97238,0.00019496,2]
[372614769,1752706247773,-258.97238,0.00019496,2]
[372614771,1752706247782,-460.0,0.00019496,2]
[372614773,1752706247791,-460.0,0.00019496,2]
[372614775,1752706247800,-460.0,0.00019496,2]
[372614777,1752706247810,-720.27,0.00019496,2]
[372614779,1752706247819,-460.0,0.00019496,2]
[372614781,1752706247828,-460.0,0.00019496,2]
[372614783,1752706247838,-460.0,0.00019496,2]
[372614785,1752706247847,-1361.71,0.00019496,2]
[372614787,1752706247856,-495.13105498,0.00019496,2]
[372614789,1752706247865,-502.97,0.00019496,2]
[372614791,1752706247874,-2063.68,0.00019496,2]
[372614793,1752706247883,-460.0,0.00019496,2]
[372614795,1752706247892,-587.84,0.00019496,2]
[372614796,1752706247901,-3447.88,0.00019496,2]
[372614798,1752706247911,-460.0,0.00019496,2]
[372614800,1752706247921,-460.0,0.00019496,2]
[372614802,1752706247930,-460.0,0.00019496,2]
[372614804,1752706247941,-533.16,0.00019496,2]
[372614806,1752706247954,-439.664381,0.00019496,2]
[372614808,1752706247964,-439.664381,0.00019496,2]
[372614810,1752706247973,-460.0,0.00019496,2]
[372614811,1752706247982,-151.0,0.00019496,2]
[372614812,1752706247992,-151.0,0.00019496,2]
[372614813,1752706248001,-460.0,0.00019496,2]
[372614814,1752706248011,-439.664381,0.00019496,2]
[372614815,1752706248020,-439.664381,0.00019496,2]
[372614816,1752706248029,-518.89,0.00019496,2]
[372614817,1752706248039,-1216.79,0.00019496,2]
[372614818,1752706248048,-460.0,0.00019496,2]
[372614819,1752706248057,-460.0,0.00019496,2]
[372614820,1752706248067,-10956.69,0.00019496,2]
[372614821,1752706248077,-643.78,0.00019496,2]
[372614822,1752706248086,-460.0,0.00019496,2]
[372614823,1752706248095,-460.0,0.00019496,2]
[372614824,1752706248105,-462.14202721,0.00019496,2]
[372614825,1752706248115,-151.0,0.00019496,2]
[372614826,1752706248124,-1670.93,0.00019496,2]
[372614827,1752706248134,-151.0,0.00019496,2]
[372614828,1752706248143,-460.0,0.00019496,2]
[372614829,1752706248152,-151.0,0.00019496,2]
[372614830,1752706248162,-272.996114,0.00019496,2]
[372614831,1752706248171,-460.0,0.00019496,2]
[372614832,1752706248180,-460.0,0.00019496,2]
[372614833,1752706248189,-460.0,0.00019496,2]
[372614834,1752706248200,-1174.62,0.00019496,2]
[372614835,1752706248210,-460.0,0.00019496,2]
[372614836,1752706248219,-966.8,0.00019496,2]
[372614837,1752706248229,-460.0,0.00019496,2]
[372614838,1752706248240,-460.0,0.00019496,2]
[372614839,1752706248251,-460.0,0.00019496,2]
[372614840,1752706248261,-151.0,0.00019496,2]
[372614841,1752706248270,-576.74,0.00019496,2]
[372614842,1752706248281,-151.0,0.00019496,2]
[372614843,1752706248290,-460.0,0.00019496,2]
[372614844,1752706248300,-648.37,0.00019496,2]
[372614845,1752706248309,-460.0,0.00019496,2]
[372614846,1752706248319,-168.29334,0.00019496,2]
[372614847,1752706248328,-168.29334,0.00019496,2]
[372614848,1752706248342,-460.0,0.00019496,2]
[372614849,1752706248352,-1245.28,0.00019496,2]
[372614850,1752706248361,-168.29334,0.00019496,2]
[372614851,1752706248371,-168.29334,0.00019496,2]
[372614852,1752706248380,-460.0,0.00019496,2]
[372614853,1752706248390,-460.0,0.00019496,2]
[372614854,1752706248399,-460.0,0.00019496,2]
[372614855,1752706248408,-744.83,0.00019496,2]
[372614856,1752706248418,-460.0,0.00019496,2]
[372614857,1752706248429,-152.210049,0.00019496,2]
[372614858,1752706248439,-300.0,0.00019496,2]
[372614859,1752706248452,-789.01,0.00019496,2]
[372614860,1752706248462,-3152.69,0.00019496,2]
[372614861,1752706248471,-500.0,0.00019496,2]
[372614862,1752706248482,-505.02,0.00019496,2]
[372614863,1752706248493,-460.0,0.00019496,2]
[372614864,1752706248502,-804.93,0.00019496,2]
[372614865,1752706248513,-460.0,0.00019496,2]
[372614866,1752706248523,-460.0,0.00019496,2]
[372614867,1752706248535,-2080.68,0.00019496,2]
[372614868,1752706248546,-460.0,0.00019496,2]
[372614869,1752706248556,-169.0,0.00019496,2]
[372614870,1752706248567,-169.0,0.00019496,2]
[372614871,1752706248577,-152.0,0.00019496,2]
[372614872,1752706248587,-996.37,0.00019496,2]
[372614873,1752706248597,-169.0,0.00019496,2]
[372614874,1752706248607,-152.0,0.00019496,2]
[372614875,1752706248616,-500.0,0.00019496,2]
[372614876,1752706248626,-169.0,0.00019496,2]
[372614877,1752706248636,-460.0,0.00019496,2]
[372614878,1752706248645,-152.0,0.00019496,2]
[372614879,1752706248655,-460.0,0.00019496,2]
[372614880,1752706248664,-460.0,0.00019496,2]
[372614881,1752706248674,-169.0,0.00019496,2]
[372614882,1752706248684,-460.0,0.00019496,2]
[372614883,1752706248694,-174.00525865,0.00019496,2]
[372614884,1752706248706,-460.0,0.00019496,2]
[372614885,1752706248716,-235.889104,0.00019496,2]
[372614886,1752706248726,-460.0,0.00019496,2]
[372614887,1752706248735,-1303.62,0.00019496,2]
[372614888,1752706248876,-460.0,0.00019496,2]
[372614889,1752706248886,-2840.5,0.00019496,2]
[372614890,1752706248896,-460.0,0.00019496,2]
[372614891,1752706248905,-460.0,0.00019496,2]
[372614892,1752706248915,-151.0,0.00019496,2]
[372614893,1752706248924,-1170.45064195,0.00019497,5]
[372614894,1752706248933,-460.0,0.00019497,2]
[372614895,1752706248943,-460.0,0.00019497,2]
[372614896,1752706248954,-472.3544311,0.00019497,2]
[372614897,1752706248964,-460.0,0.00019497,2]
[372614898,1752706248973,-460.0,0.00019497,2]
[372614899,1752706248983,-465.49545821,0.00019497,2]
[372614900,1752706248993,-460.0,0.00019497,2]
[372614901,1752706249002,-460.0,0.00019497,2]
[372614902,1752706249012,-460.0,0.00019497,2]
[372614903,1752706249022,-460.0,0.00019497,2]
[372614904,1752706249032,-460.0,0.00019497,2]
[372614905,1752706249042,-460.0,0.00019497,2]
[372614906,1752706249052,-460.0,0.00019497,2]
[372614907,1752706249061,-460.0,0.00019497,2]
[372614908,1752706249071,-461.58715804,0.00019497,2]
[372614909,1752706249082,-151.0,0.00019497,2]
[372614910,1752706249092,-151.0,0.00019497,2]
[372614911,1752706249102,-151.0,0.00019497,2]
[372614912,1752706249112,-151.0,0.00019497,2]
[372614913,1752706249121,-151.647802,0.00019497,2]
[372614914,1752706249131,-500.0,0.00019497,2]
[372614915,1752706249140,-500.0,0.00019497,2]
[372614916,1752706249150,-151.0,0.00019497,2]
[372614917,1752706249160,-151.0,0.00019497,2]
[372614918,1752706249170,-500.0,0.00019497,2]
[372614919,1752706249179,-151.0,0.00019497,2]
[372614920,1752706249189,-151.0,0.00019497,2]
[372614921,1752706249199,-151.0,0.00019497,2]
[372614922,1752706249208,-151.0,0.00019497,2]
[372614923,1752706249218,-151.0,0.00019497,2]
[372614924,1752706249228,-500.0,0.00019497,2]
[372614925,1752706249239,-567.24,0.00019497,2]
[372614926,1752706249250,-567.24,0.00019497,2]
[372614927,1752706249259,-500.0,0.00019497,2]
[372614928,1752706249269,-500.0,0.00019497,2]
[372614929,1752706249279,-151.0,0.00019497,2]
[372614930,1752706249288,-460.0,0.00019497,2]
[372614931,1752706249298,-460.0,0.00019497,2]
[372614932,1752706249308,-983.13,0.00019497,2]
[372614933,1752706249319,-152.128453,0.00019497,2]
[372614934,1752706249329,-151.0,0.00019497,2]
[372614935,1752706249339,-151.0,0.00019497,2]
[372614936,1752706249349,-460.0,0.00019497,2]
[372614937,1752706249359,-537.84,0.00019497,2]
[372614938,1752706249368,-460.0,0.00019497,2]
[372614939,1752706249378,-500.0,0.00019497,2]
[372614940,1752706249388,-501.73,0.00019497,2]
[372614941,1752706249397,-151.0,0.00019497,2]
[372614942,1752706249407,-881.34,0.00019497,2]
[372614943,1752706249417,-1172.9,0.00019497,2]
[372614944,1752706249427,-1042.73,0.00019497,2]
[372614945,1752706249436,-184.864281,0.00019497,2]
[372614946,1752706249445,-460.0,0.00019497,2]
[372614947,1752706249457,-679.95,0.00019497,2]
[372614948,1752706249467,-184.864281,0.00019497,2]
[372614949,1752706249477,-151.0,0.00019497,2]
[372614950,1752706249487,-991.14,0.00019497,2]
[372614951,1752706249497,-705.41,0.00019497,2]
[372614952,1752706249507,-1103.49,0.00019497,2]
[372614953,1752706249517,-491.51,0.00019497,2]
[372614954,1752706249527,-460.0,0.00019497,2]
[372614955,1752706249538,-151.0,0.00019497,2]
[372614956,1752706249549,-460.0,0.00019497,2]
[372614957,1752706249559,-583.08,0.00019497,2]
[372614958,1752706249571,-151.0,0.00019497,2]
[372614959,1752706249581,-460.0,0.00019497,2]
[372614960,1752706249591,-460.0,0.00019497,2]
[372614961,1752706249601,-554.64,0.00019497,2]
[372614962,1752706249610,-832.28,0.00019497,2]
[372614963,1752706249621,-460.0,0.00019497,2]
[372614964,1752706249630,-931.31,0.00019497,2]
[372614965,1752706249639,-460.0,0.00019497,2]
[372614966,1752706249649,-178.445853,0.00019497,2]
[372614967,1752706249661,-460.0,0.00019497,2]
[372614968,1752706249670,-460.0,0.00019497,2]
[372614969,1752706249679,-210.34343,0.00019497,2]
[372614970,1752706249690,-460.0,0.00019497,2]
[372614971,1752706249700,-460.0,0.00019497,2]
[372614972,1752706249710,-484.88,0.00019497,2]
[372614973,1752706249719,-576.09,0.00019497,2]
[372614974,1752706249729,-460.0,0.00019497,2]
[372614975,1752706249738,-460.0,0.00019497,2]
[372614976,1752706249748,-512.93,0.00019497,2]
[372614977,1752706249758,-460.0,0.00019497,2]
[372614978,1752706249768,-2095.77,0.00019497,2]
[372614979,1752706249780,-151.0,0.00019497,2]
[372614980,1752706249794,-460.0,0.00019497,2]
[372614981,1752706249804,-460.0,0.00019497,2]
[372614982,1752706249814,-1200.94,0.00019497,2]
[372614983,1752706249824,-589.77,0.00019497,2]
[372614984,1752706249834,-785.75,0.00019497,2]
[372614985,1752706249844,-692.31,0.00019497,2]
[372614986,1752706249854,-568.85,0.00019497,2]
[372614987,1752706249865,-1268.76,0.00019497,2]
[372614988,1752706249875,-565.76,0.00019497,2]
[372614989,1752706249888,-460.0,0.00019497,2]
[372614990,1752706249898,-460.0,0.00019497,2]
[372614991,1752706249908,-667.6,0.00019497,2]
[372614992,1752706249918,-460.0,0.00019497,2]
[372614993,1752706249929,-1124.32,0.00019497,2]
[372614994,1752706249939,-720.67,0.00019497,2]
[372614995,1752706249949,-500.0,0.00019497,2]
[372614996,1752706249958,-500.0,0.00019497,2]
[372614997,1752706249968,-460.0,0.00019497,2]
[372614998,1752706249978,-500.0,0.00019497,2]
[372614999,1752706249987,-500.0,0.00019497,2]
[372615000,1752706249997,-684.65,0.00019497,2]
[372615001,1752706250007,-1068.68,0.00019497,2]
[372615002,1752706250016,-645.92,0.00019497,2]
[372615003,1752706250026,-575.98,0.00019497,2]
[372615004,1752706250035,-460.0,0.00019497,2]
[372615005,1752706250046,-681.49,0.00019497,2]
[372615006,1752706250056,-778.27,0.00019497,2]
[372615007,1752706250066,-151.0,0.00019497,2]
[372615008,1752706250077,-567.83507594,0.00019497,2]
[372615009,1752706250087,-1218.97,0.00019497,2]
[372615010,1752706250098,-460.0,0.00019497,2]
[372615011,1752706250108,-2535.88,0.00019497,2]
[372615012,1752706250117,-1326.64,0.00019497,2]
[372615013,1752706250127,-1999.6,0.00019497,2]
[372615014,1752706250138,-933.74,0.00019497,2]
[372615015,1752706250148,-933.74,0.00019497,2]
[372615016,1752706250158,-1298.0,0.00019497,2]
[372615017,1752706250168,-724.5,0.00019497,2]
[372615018,1752706250178,-650.85,0.00019497,2]
[372615019,1752706250187,-460.0,0.00019497,2]
[372615020,1752706250198,-439.664381,0.00019497,2]
[372615021,1752706250208,-1195.71,0.00019497,2]
[372615022,1752706250218,-151.0,0.00019497,2]
[372615023,1752706250227,-439.664381,0.00019497,2]
[372615024,1752706250238,-1395.93,0.00019497,2]
[372615025,1752706250249,-151.0,0.00019497,2]
[372615026,1752706250259,-1346.52,0.00019497,2]
[372615027,1752706250270,-151.0,0.00019497,2]
[372615028,1752706250282,-648.37,0.00019497,2]
[372615029,1752706250292,-648.37,0.00019497,2]
[372615030,1752706250302,-168.29334,0.00019497,2]
[372615031,1752706250311,-872.38,0.00019497,2]
[372615032,1752706250327,-168.29334,0.00019497,2]
[372615033,1752706250338,-511.98,0.00019497,2]
[372615034,1752706250347,-460.0,0.00019497,2]
[372615035,1752706250359,-358.74,0.00019497,2]
[372615036,1752706250369,-460.0,0.00019497,2]
[372615037,1752706250378,-871.93,0.00019497,2]
[372615038,1752706250388,-151.0,0.00019498,2]
[372615039,1752706250402,-151.0,0.00019498,2]
[372615040,1752706250412,-151.0,0.00019498,2]
[372615041,1752706250421,-151.0,0.00019498,2]
[372615042,1752706250431,-151.0,0.00019498,2]
[372615043,1752706250443,-927.49,0.00019498,2]
[372615044,1752706250454,-668.85,0.00019498,2]
[372615045,1752706250463,-1409.53,0.00019498,2]
[372615046,1752706250473,-476.82,0.00019498,2]
[372615047,1752706250483,-1142.99,0.00019498,2]
[372615048,1752706250492,-460.0,0.00019498,2]
[372615049,1752706250502,-460.0,0.00019498,2]
[372615050,1752706250512,-460.0,0.00019498,2]
[372615051,1752706250521,-855.44,0.00019498,2]
[372615052,1752706250531,-476.02,0.00019498,2]
[372615053,1752706250543,-1022.83,0.00019498,2]
[372615054,1752706250553,-184.864281,0.00019498,2]
[372615055,1752706250563,-184.864281,0.00019498,2]
[372615056,1752706250573,-151.0,0.00019498,2]
[372615057,1752706250583,-460.0,0.00019498,2]
[372615058,1752706250593,-460.0,0.00019498,2]
[372615059,1752706250602,-1194.26,0.00019498,2]
[372615060,1752706250611,-151.0,0.00019498,2]
[372615061,1752706250621,-151.0,0.00019498,2]
[372615062,1752706250630,-151.0,0.00019498,2]
[372615063,1752706250640,-151.0,0.00019498,2]
[372615064,1752706250650,-258.97238,0.00019498,2]
[372615065,1752706250659,-258.97238,0.00019498,2]
[372615066,1752706250671,-586.33,0.00019499,2]
[372615067,1752706250682,-460.0,0.00019499,2]
[372615068,1752706250692,-460.0,0.00019499,2]
[372615069,1752706250704,-500.0,0.00019499,2]
[372615070,1752706250714,-520.33991884,0.00019499,2]
[372615071,1752706250724,-460.0,0.00019499,2]
[372615072,1752706250734,-460.0,0.00019499,2]
[372615073,1752706250743,-460.0,0.00019499,2]
[372615074,1752706250753,-151.0,0.00019499,2]